[Event "*** Titled Tuesday Blitz"]
[Site "Chess.com"]
[Date "2020.05.05"]
[Round "5"]
[White "Pittiplatsh"]
[Black "Bigfish1995"]
[Result "1-0"]
[WhiteElo "2537"]
[BlackElo "3086"]
[TimeControl "180+1"]
[EndTime "10:57:45 PDT"]
[Termination "Pittiplatsh won on time"]

1. e4 {[%clk 0:03:00.9]} 1... c5 {[%clk 0:02:59.8]} 2. Nf3 {[%clk 0:03:00.4]}
2... d6 {[%clk 0:03:00.5]} 3. d4 {[%clk 0:03:00.4]} 3... cxd4 {[%clk 0:03:01.4]}
4. Nxd4 {[%clk 0:03:00.7]} 4... Nf6 {[%clk 0:03:01.8]} 5. Nc3 {[%clk 0:03:00.9]}
5... a6 {[%clk 0:03:02.3]} 6. Be3 {[%clk 0:03:01.1]} 6... e5 {[%clk 0:03:01.8]}
7. Nb3 {[%clk 0:02:59.8]} 7... Be6 {[%clk 0:03:01]} 8. f3 {[%clk 0:02:59]} 8...
h5 {[%clk 0:03:01.2]} 9. Nd5 {[%clk 0:02:51.6]} 9... Nxd5 {[%clk 0:03:00.5]} 10.
exd5 {[%clk 0:02:52.5]} 10... Bc8 {[%clk 0:03:01.2]} 11. Bd3 {[%clk 0:02:40.5]}
11... g6 {[%clk 0:02:55.1]} 12. c4 {[%clk 0:02:34.5]} 12... b6 {[%clk
0:02:53.5]} 13. O-O {[%clk 0:02:31.8]} 13... Nd7 {[%clk 0:02:50.7]} 14. f4
{[%clk 0:02:29.3]} 14... Bh6 {[%clk 0:02:48.7]} 15. Qd2 {[%clk 0:02:26.5]} 15...
exf4 {[%clk 0:02:12.2]} 16. Bxf4 {[%clk 0:02:25.8]} 16... Bxf4 {[%clk
0:02:12.8]} 17. Rxf4 {[%clk 0:02:15.2]} 17... Ne5 {[%clk 0:02:13]} 18. Raf1
{[%clk 0:02:09.4]} 18... Qg5 {[%clk 0:02:01.9]} 19. Nd4 {[%clk 0:01:55.3]} 19...
O-O {[%clk 0:01:56.5]} 20. Nf3 {[%clk 0:01:40]} 20... Nxf3+ {[%clk 0:01:17.4]}
21. R1xf3 {[%clk 0:01:39.6]} 21... Bg4 {[%clk 0:01:17.5]} 22. Rf1 {[%clk
0:01:33.3]} 22... Rae8 {[%clk 0:01:15.4]} 23. Qf2 {[%clk 0:01:30.8]} 23... Re7
{[%clk 0:00:44.1]} 24. Qxb6 {[%clk 0:01:12.6]} 24... Be2 {[%clk 0:00:23.4]} 25.
Bxe2 {[%clk 0:01:10.5]} 25... Rxe2 {[%clk 0:00:24.3]} 26. R4f2 {[%clk
0:01:06.3]} 26... Qg4 {[%clk 0:00:24.2]} 27. b3 {[%clk 0:00:49.9]} 27... h4
{[%clk 0:00:14.3]} 28. Qxd6 {[%clk 0:00:44.1]} 28... Rxf2 {[%clk 0:00:10.7]} 29.
Rxf2 {[%clk 0:00:42.1]} 29... Re8 {[%clk 0:00:10.8]} 30. h3 {[%clk 0:00:19.5]}
30... Re1+ {[%clk 0:00:07.5]} 31. Kh2 {[%clk 0:00:19.3]} 31... Qd1 {[%clk
0:00:07.7]} 32. Qd8+ {[%clk 0:00:18.9]} 32... Kg7 {[%clk 0:00:06.3]} 33. Qf6+
{[%clk 0:00:18.6]} 33... Kh7 {[%clk 0:00:05.1]} 34. Qxf7+ {[%clk 0:00:16]} 34...
Kh6 {[%clk 0:00:05.5]} 35. Qf4+ {[%clk 0:00:15.6]} 35... Kh5 {[%clk 0:00:03.9]}
36. Qf3+ {[%clk 0:00:14.4]} 36... Qxf3 {[%clk 0:00:04.2]} 37. Rxf3 {[%clk
0:00:14]} 37... Rd1 {[%clk 0:00:04.8]} 38. Rf6 {[%clk 0:00:12.5]} 38... a5
{[%clk 0:00:04.6]} 39. d6 {[%clk 0:00:12.4]} 39... Kg5 {[%clk 0:00:03.4]} 40.
Rf7 {[%clk 0:00:12]} 40... Rxd6 {[%clk 0:00:03]} 41. Ra7 {[%clk 0:00:12.6]}
41... Rd2 {[%clk 0:00:03.1]} 42. Rxa5+ {[%clk 0:00:12.5]} 42... Kf4 {[%clk
0:00:04]} 43. Ra8 {[%clk 0:00:12.5]} 43... Rc2 {[%clk 0:00:04.3]} 44. a4 {[%clk
0:00:11.7]} 44... Rc3 {[%clk 0:00:04.2]} 45. a5 {[%clk 0:00:11.6]} 45... Rxb3
{[%clk 0:00:04.4]} 46. a6 {[%clk 0:00:11.6]} 46... Ra3 {[%clk 0:00:05]} 47. a7
{[%clk 0:00:10.9]} 47... Kg5 {[%clk 0:00:05.4]} 48. c5 {[%clk 0:00:11.5]} 48...
Ra6 {[%clk 0:00:05.3]} 49. c6 {[%clk 0:00:11.5]} 49... Rxc6 {[%clk 0:00:05.2]}
50. Rb8 {[%clk 0:00:11.7]} 1-0

[Event "*** Titled Tuesday Blitz"]
[Site "Chess.com"]
[Date "2020.05.05"]
[Round "5"]
[White "profofchess"]
[Black "awesomevishesh"]
[Result "1/2-1/2"]
[WhiteElo "2455"]
[BlackElo "2473"]
[TimeControl "180+1"]
[EndTime "10:57:46 PDT"]
[Termination "Game drawn by repetition"]

1. e4 {[%clk 0:03:00.9]} 1... c5 {[%clk 0:02:59.7]} 2. Nf3 {[%clk 0:03:00.6]}
2... d6 {[%clk 0:02:59.7]} 3. c3 {[%clk 0:03:00.4]} 3... Nf6 {[%clk 0:02:59.3]}
4. Bc4 {[%clk 0:03:00.3]} 4... Nc6 {[%clk 0:02:46.8]} 5. Qe2 {[%clk 0:02:58.9]}
5... g6 {[%clk 0:02:44.5]} 6. d4 {[%clk 0:02:51.7]} 6... cxd4 {[%clk 0:02:41.9]}
7. cxd4 {[%clk 0:02:52.6]} 7... Bg7 {[%clk 0:02:35.3]} 8. d5 {[%clk 0:02:16.7]}
8... Ne5 {[%clk 0:02:03.3]} 9. Nxe5 {[%clk 0:02:14.8]} 9... dxe5 {[%clk
0:02:04.2]} 10. Nc3 {[%clk 0:01:58.5]} 10... O-O {[%clk 0:02:03.1]} 11. O-O
{[%clk 0:01:57.3]} 11... Bd7 {[%clk 0:01:51.6]} 12. Rd1 {[%clk 0:01:52.4]} 12...
Nh5 {[%clk 0:01:34.1]} 13. g3 {[%clk 0:01:27.8]} 13... Nf6 {[%clk 0:01:26.9]}
14. f3 {[%clk 0:01:27.1]} 14... a6 {[%clk 0:01:10.4]} 15. Be3 {[%clk 0:01:08.1]}
15... Ne8 {[%clk 0:00:55.5]} 16. a4 {[%clk 0:01:00.3]} 16... Nd6 {[%clk
0:00:51.5]} 17. Bd3 {[%clk 0:00:41]} 17... Qa5 {[%clk 0:00:46.4]} 18. Rdb1
{[%clk 0:00:35]} 18... Rfc8 {[%clk 0:00:37.1]} 19. b4 {[%clk 0:00:31.3]} 19...
Qd8 {[%clk 0:00:36.3]} 20. Rc1 {[%clk 0:00:28.9]} 20... e6 {[%clk 0:00:26.5]}
21. a5 {[%clk 0:00:26.4]} 21... f5 {[%clk 0:00:17.3]} 22. Ra2 {[%clk 0:00:19.6]}
22... exd5 {[%clk 0:00:11.3]} 23. Nxd5 {[%clk 0:00:18.7]} 23... Be6 {[%clk
0:00:11.3]} 24. Rac2 {[%clk 0:00:16.9]} 24... Bxd5 {[%clk 0:00:10]} 25. exd5
{[%clk 0:00:15.3]} 25... e4 {[%clk 0:00:05.4]} 26. fxe4 {[%clk 0:00:13.8]} 26...
fxe4 {[%clk 0:00:05.4]} 27. Bb6 {[%clk 0:00:12.3]} 27... Qe7 {[%clk 0:00:03.2]}
28. Rxc8+ {[%clk 0:00:08.6]} 28... Rxc8 {[%clk 0:00:03.2]} 29. Rxc8+ {[%clk
0:00:08.6]} 29... Nxc8 {[%clk 0:00:04.1]} 30. Qxe4 {[%clk 0:00:08.6]} 30... Qxe4
{[%clk 0:00:04]} 31. Bxe4 {[%clk 0:00:09.5]} 31... Nxb6 {[%clk 0:00:04.9]} 32.
axb6 {[%clk 0:00:09.4]} 32... Bd4+ {[%clk 0:00:05.8]} 33. Kg2 {[%clk 0:00:09.1]}
33... Bxb6 {[%clk 0:00:06.7]} 34. d6 {[%clk 0:00:09.6]} 34... Kf7 {[%clk
0:00:06.3]} 35. Bxb7 {[%clk 0:00:09.2]} 35... Ke6 {[%clk 0:00:06.7]} 36. Bxa6
{[%clk 0:00:09.5]} 36... Kxd6 {[%clk 0:00:07.2]} 37. Bc4 {[%clk 0:00:09.5]}
37... h6 {[%clk 0:00:07.4]} 38. h4 {[%clk 0:00:07.4]} 38... Ke5 {[%clk
0:00:07.5]} 39. Kf3 {[%clk 0:00:07.2]} 39... g5 {[%clk 0:00:07.7]} 40. h5 {[%clk
0:00:06.3]} 40... Bd4 {[%clk 0:00:06.5]} 41. g4 {[%clk 0:00:06.5]} 41... Bb6
{[%clk 0:00:06.3]} 42. Bd3 {[%clk 0:00:05.9]} 42... Bd4 {[%clk 0:00:06.4]} 43.
Bf5 {[%clk 0:00:06.3]} 43... Bb6 {[%clk 0:00:06.4]} 44. Ke2 {[%clk 0:00:06.6]}
44... Kd4 {[%clk 0:00:06.1]} 45. b5 {[%clk 0:00:06.8]} 45... Bc5 {[%clk
0:00:05.1]} 46. Bd7 {[%clk 0:00:07.1]} 46... Bb6 {[%clk 0:00:05.2]} 47. Kd2
{[%clk 0:00:07.5]} 47... Bc5 {[%clk 0:00:04.5]} 48. Kc2 {[%clk 0:00:07.9]} 48...
Kc4 {[%clk 0:00:04.3]} 49. Kd2 {[%clk 0:00:07.6]} 49... Kd4 {[%clk 0:00:04.4]}
50. Kc2 {[%clk 0:00:07.8]} 50... Kc4 {[%clk 0:00:04.6]} 51. Kb2 {[%clk
0:00:08.1]} 51... Kb4 {[%clk 0:00:04.9]} 52. Kc2 {[%clk 0:00:08.1]} 52... Kc4
{[%clk 0:00:05.2]} 1/2-1/2

[Event "*** Titled Tuesday Blitz"]
[Site "Chess.com"]
[Date "2020.05.05"]
[Round "5"]
[White "vanyakuba"]
[Black "CMS13"]
[Result "1-0"]
[WhiteElo "2438"]
[BlackElo "2175"]
[TimeControl "180+1"]
[EndTime "10:57:46 PDT"]
[Termination "vanyakuba won by checkmate"]

1. e4 {[%clk 0:03:00.9]} 1... e5 {[%clk 0:02:59.8]} 2. Nf3 {[%clk 0:02:54.6]}
2... Nc6 {[%clk 0:03:00]} 3. Bb5 {[%clk 0:02:53.5]} 3... Bc5 {[%clk 0:02:59.5]}
4. c3 {[%clk 0:02:53.5]} 4... Qf6 {[%clk 0:02:59.3]} 5. d3 {[%clk 0:02:45.8]}
5... h6 {[%clk 0:02:59.3]} 6. Nbd2 {[%clk 0:02:38.5]} 6... Nge7 {[%clk
0:02:58.8]} 7. b4 {[%clk 0:02:32.8]} 7... Bb6 {[%clk 0:02:58.5]} 8. Nc4 {[%clk
0:02:32.8]} 8... d6 {[%clk 0:02:51.5]} 9. a4 {[%clk 0:02:29.2]} 9... a6 {[%clk
0:02:47.1]} 10. Nxb6 {[%clk 0:02:27.5]} 10... cxb6 {[%clk 0:02:47]} 11. Bc4
{[%clk 0:02:24.6]} 11... O-O {[%clk 0:02:46.7]} 12. h3 {[%clk 0:02:13.4]} 12...
Kh8 {[%clk 0:02:43.2]} 13. Be3 {[%clk 0:02:10.6]} 13... Qg6 {[%clk 0:02:42.6]}
14. Nh4 {[%clk 0:01:53.3]} 14... Qf6 {[%clk 0:02:42.6]} 15. Qh5 {[%clk
0:01:40.6]} 15... Ng8 {[%clk 0:02:28.2]} 16. g3 {[%clk 0:01:24.4]} 16... g6
{[%clk 0:02:21.8]} 17. Qe2 {[%clk 0:01:24.3]} 17... Qg7 {[%clk 0:02:17]} 18.
Bxb6 {[%clk 0:01:22.8]} 18... f5 {[%clk 0:02:14.7]} 19. exf5 {[%clk 0:01:06.2]}
19... gxf5 {[%clk 0:02:11.9]} 20. Qh5 {[%clk 0:00:59.2]} 20... f4 {[%clk
0:01:53.9]} 21. Qg6 {[%clk 0:00:53.7]} 21... Qe7 {[%clk 0:01:37.9]} 22. Bxg8
{[%clk 0:00:46.5]} 22... fxg3 {[%clk 0:01:24]} 23. fxg3 {[%clk 0:00:25.8]} 23...
Rxg8 {[%clk 0:01:17.2]} 24. Qxh6+ {[%clk 0:00:25.8]} 24... Qh7 {[%clk
0:01:16.7]} 25. Qxh7+ {[%clk 0:00:25.2]} 25... Kxh7 {[%clk 0:01:17.6]} 26. g4
{[%clk 0:00:24.8]} 26... Be6 {[%clk 0:01:11.4]} 27. Kd2 {[%clk 0:00:23.8]} 27...
Raf8 {[%clk 0:01:07.6]} 28. Raf1 {[%clk 0:00:23.8]} 28... Ne7 {[%clk 0:01:03.1]}
29. Bc7 {[%clk 0:00:18.4]} 29... Nc8 {[%clk 0:00:54.2]} 30. b5 {[%clk
0:00:16.8]} 30... axb5 {[%clk 0:00:53.5]} 31. axb5 {[%clk 0:00:17.7]} 31... Bd5
{[%clk 0:00:48.5]} 32. Rhg1 {[%clk 0:00:17.4]} 32... Kh6 {[%clk 0:00:45.6]} 33.
c4 {[%clk 0:00:17.5]} 33... Be6 {[%clk 0:00:41.4]} 34. Ke2 {[%clk 0:00:17.1]}
34... Rf7 {[%clk 0:00:32.3]} 35. Rxf7 {[%clk 0:00:16.2]} 35... Bxf7 {[%clk
0:00:32.3]} 36. Rf1 {[%clk 0:00:16.6]} 36... Be8 {[%clk 0:00:29.6]} 37. Nf5+
{[%clk 0:00:15.7]} 37... Kh7 {[%clk 0:00:26.2]} 38. Nxd6 {[%clk 0:00:14.2]}
38... Nxd6 {[%clk 0:00:26.1]} 39. Bxd6 {[%clk 0:00:15.1]} 39... e4 {[%clk
0:00:23.1]} 40. dxe4 {[%clk 0:00:13.5]} 40... Rg6 {[%clk 0:00:22.8]} 41. e5
{[%clk 0:00:13]} 41... Rh6 {[%clk 0:00:21.6]} 42. Rf3 {[%clk 0:00:12.9]} 42...
Kg7 {[%clk 0:00:19.6]} 43. Kd3 {[%clk 0:00:12.4]} 43... Bf7 {[%clk 0:00:20]} 44.
Kd4 {[%clk 0:00:12.5]} 44... Bg6 {[%clk 0:00:19.5]} 45. c5 {[%clk 0:00:12.4]}
45... Be8 {[%clk 0:00:19.1]} 46. Bf8+ {[%clk 0:00:12.4]} 46... Kg8 {[%clk
0:00:19]} 47. Bxh6 {[%clk 0:00:12.1]} 47... Bxb5 {[%clk 0:00:19]} 48. Rf8+
{[%clk 0:00:11.7]} 48... Kh7 {[%clk 0:00:19.5]} 49. Rb8 {[%clk 0:00:12.4]} 49...
Kxh6 {[%clk 0:00:19.8]} 50. Rxb7 {[%clk 0:00:12.6]} 50... Bc6 {[%clk 0:00:20.5]}
51. Rb6 {[%clk 0:00:12.8]} 51... Kg5 {[%clk 0:00:19.7]} 52. Rxc6 {[%clk
0:00:12.8]} 52... Kh4 {[%clk 0:00:19.9]} 53. Rf6 {[%clk 0:00:12.7]} 53... Kg5
{[%clk 0:00:19.9]} 54. Rf5+ {[%clk 0:00:12.5]} 54... Kg6 {[%clk 0:00:18.8]} 55.
e6 {[%clk 0:00:11.9]} 55... Kg7 {[%clk 0:00:18.9]} 56. e7 {[%clk 0:00:12.5]}
56... Kh7 {[%clk 0:00:18.8]} 57. e8=Q {[%clk 0:00:12.5]} 57... Kg7 {[%clk
0:00:19.7]} 58. Qe7+ {[%clk 0:00:09.7]} 58... Kg6 {[%clk 0:00:19.5]} 59. Qg5+
{[%clk 0:00:09.8]} 59... Kh7 {[%clk 0:00:19.5]} 60. Rf7+ {[%clk 0:00:10.3]}
60... Kh8 {[%clk 0:00:19.9]} 61. Qg7# {[%clk 0:00:10.7]} 1-0

[Event "*** Titled Tuesday Blitz"]
[Site "Chess.com"]
[Date "2020.05.05"]
[Round "5"]
[White "LamaChampetre"]
[Black "Filip_Covic"]
[Result "0-1"]
[WhiteElo "2166"]
[BlackElo "2354"]
[TimeControl "180+1"]
[EndTime "10:57:47 PDT"]
[Termination "Filip_Covic won on time"]

1. d4 {[%clk 0:03:00.9]} 1... Nf6 {[%clk 0:02:58.2]} 2. c4 {[%clk 0:03:00.7]}
2... e6 {[%clk 0:02:57]} 3. Nf3 {[%clk 0:02:59.6]} 3... Bb4+ {[%clk 0:02:56.9]}
4. Nbd2 {[%clk 0:02:56]} 4... b6 {[%clk 0:02:55.8]} 5. g3 {[%clk 0:02:55]} 5...
Ba6 {[%clk 0:02:35.5]} 6. Qc2 {[%clk 0:02:52.4]} 6... Bb7 {[%clk 0:02:28]} 7.
Bg2 {[%clk 0:02:51.9]} 7... Be4 {[%clk 0:02:27.3]} 8. Qb3 {[%clk 0:02:51.7]}
8... Bxd2+ {[%clk 0:02:22.8]} 9. Bxd2 {[%clk 0:02:51.8]} 9... O-O {[%clk
0:02:23.4]} 10. O-O {[%clk 0:02:51.6]} 10... d6 {[%clk 0:02:21.8]} 11. Rac1
{[%clk 0:02:51.1]} 11... Nbd7 {[%clk 0:02:12.9]} 12. Bh3 {[%clk 0:02:46.3]}
12... a5 {[%clk 0:02:07.8]} 13. Ng5 {[%clk 0:02:16.9]} 13... Bb7 {[%clk
0:01:57.8]} 14. Bxe6 {[%clk 0:01:49.5]} 14... fxe6 {[%clk 0:01:42.9]} 15. Nxe6
{[%clk 0:01:49]} 15... Qc8 {[%clk 0:01:39.7]} 16. Nxf8 {[%clk 0:01:42.7]} 16...
Qxf8 {[%clk 0:01:37.3]} 17. f3 {[%clk 0:01:32.7]} 17... Kh8 {[%clk 0:01:27.3]}
18. e4 {[%clk 0:01:32.2]} 18... Re8 {[%clk 0:01:18.7]} 19. Be3 {[%clk
0:01:20.4]} 19... Ba6 {[%clk 0:00:58.6]} 20. Rf2 {[%clk 0:01:10.8]} 20... Qf7
{[%clk 0:00:50.9]} 21. Qc3 {[%clk 0:01:03.5]} 21... h6 {[%clk 0:00:22.8]} 22. b3
{[%clk 0:01:02.4]} 22... Rf8 {[%clk 0:00:19.3]} 23. a3 {[%clk 0:00:57.8]} 23...
Qh5 {[%clk 0:00:16.1]} 24. b4 {[%clk 0:00:44.1]} 24... axb4 {[%clk 0:00:15]} 25.
axb4 {[%clk 0:00:43.8]} 25... Nh7 {[%clk 0:00:14.6]} 26. Rcf1 {[%clk 0:00:35.7]}
26... Ng5 {[%clk 0:00:09.9]} 27. Bxg5 {[%clk 0:00:34.6]} 27... hxg5 {[%clk
0:00:10.8]} 28. b5 {[%clk 0:00:34.2]} 28... Bc8 {[%clk 0:00:10.5]} 29. f4 {[%clk
0:00:31.1]} 29... g4 {[%clk 0:00:09.1]} 30. f5 {[%clk 0:00:26.8]} 30... Nf6
{[%clk 0:00:08.2]} 31. Rf4 {[%clk 0:00:26.5]} 31... Bb7 {[%clk 0:00:08]} 32.
R1f2 {[%clk 0:00:20.3]} 32... Nxe4 {[%clk 0:00:06.3]} 33. Rxe4 {[%clk
0:00:15.8]} 33... Bxe4 {[%clk 0:00:05.9]} 34. d5 {[%clk 0:00:11]} 34... Bf3
{[%clk 0:00:05.3]} 35. Ra2 {[%clk 0:00:06.3]} 35... Qxf5 {[%clk 0:00:05]} 36.
Qe1 {[%clk 0:00:05.5]} 36... Qf7 {[%clk 0:00:03.7]} 37. Rf2 {[%clk 0:00:04.1]}
37... Re8 {[%clk 0:00:04.1]} 38. Qf1 {[%clk 0:00:03.1]} 38... Qg6 {[%clk
0:00:03.8]} 39. h3 {[%clk 0:00:02.1]} 39... Qe4 {[%clk 0:00:03.8]} 40. Kh2
{[%clk 0:00:01.7]} 40... Qe5 {[%clk 0:00:02.2]} 41. hxg4 {[%clk 0:00:01.2]}
41... Bxg4 {[%clk 0:00:02.3]} 0-1

[Event "*** Titled Tuesday Blitz"]
[Site "Chess.com"]
[Date "2020.05.05"]
[Round "5"]
[White "GM4life"]
[Black "MaxLeto"]
[Result "0-1"]
[WhiteElo "2157"]
[BlackElo "2333"]
[TimeControl "180+1"]
[EndTime "10:57:49 PDT"]
[Termination "MaxLeto won on time"]

1. e4 {[%clk 0:03:00.9]} 1... c5 {[%clk 0:02:50.4]} 2. Nf3 {[%clk 0:03:00.3]}
2... d6 {[%clk 0:02:44.9]} 3. d4 {[%clk 0:03:00]} 3... cxd4 {[%clk 0:02:45.5]}
4. Nxd4 {[%clk 0:02:58.6]} 4... Nf6 {[%clk 0:02:44.9]} 5. Nc3 {[%clk 0:02:58]}
5... a6 {[%clk 0:02:45.4]} 6. Be3 {[%clk 0:02:57.1]} 6... Ng4 {[%clk 0:02:44]}
7. Bg5 {[%clk 0:02:55.8]} 7... h6 {[%clk 0:02:43.6]} 8. Bc1 {[%clk 0:02:54.6]}
8... Nf6 {[%clk 0:02:32.1]} 9. Bd3 {[%clk 0:02:52]} 9... Nc6 {[%clk 0:02:24.8]}
10. Nf5 {[%clk 0:02:40.9]} 10... e6 {[%clk 0:02:07.9]} 11. Ng3 {[%clk
0:02:29.4]} 11... b5 {[%clk 0:02:04.4]} 12. a3 {[%clk 0:02:27.8]} 12... Bb7
{[%clk 0:01:58.4]} 13. O-O {[%clk 0:02:26]} 13... Be7 {[%clk 0:01:56.7]} 14. Be3
{[%clk 0:02:25.8]} 14... Ne5 {[%clk 0:01:41.1]} 15. f4 {[%clk 0:02:13.8]} 15...
Neg4 {[%clk 0:01:32.2]} 16. Qe2 {[%clk 0:02:11.6]} 16... Nxe3 {[%clk 0:01:30.7]}
17. Qxe3 {[%clk 0:02:11.6]} 17... Rc8 {[%clk 0:01:16.9]} 18. Kh1 {[%clk
0:02:08.8]} 18... h5 {[%clk 0:01:08.1]} 19. Rad1 {[%clk 0:01:47.2]} 19... h4
{[%clk 0:01:06.6]} 20. Nge2 {[%clk 0:01:44.6]} 20... h3 {[%clk 0:01:07.2]} 21.
g3 {[%clk 0:01:42.3]} 21... Ng4 {[%clk 0:00:50.7]} 22. Qf3 {[%clk 0:01:40.1]}
22... f5 {[%clk 0:00:51.1]} 23. Nd4 {[%clk 0:01:32.8]} 23... Qd7 {[%clk
0:00:40.4]} 24. Kg1 {[%clk 0:01:11.3]} 24... O-O {[%clk 0:00:29.4]} 25. Qe2
{[%clk 0:01:10.5]} 25... Bf6 {[%clk 0:00:26]} 26. Nf3 {[%clk 0:00:42.5]} 26...
Bxc3 {[%clk 0:00:21.1]} 27. bxc3 {[%clk 0:00:42.4]} 27... Rxc3 {[%clk
0:00:21.7]} 28. exf5 {[%clk 0:00:38.3]} 28... exf5 {[%clk 0:00:20.2]} 29. Rde1
{[%clk 0:00:38.6]} 29... Bd5 {[%clk 0:00:14.9]} 30. Ng5 {[%clk 0:00:38.3]} 30...
Qa7+ {[%clk 0:00:14]} 31. Rf2 {[%clk 0:00:33.4]} 31... Nxf2 {[%clk 0:00:07.4]}
32. Qxf2 {[%clk 0:00:34.3]} 32... Qxf2+ {[%clk 0:00:07.6]} 33. Kxf2 {[%clk
0:00:35.2]} 33... Rxa3 {[%clk 0:00:07.8]} 34. Re7 {[%clk 0:00:35.3]} 34... b4
{[%clk 0:00:03.9]} 35. Rd7 {[%clk 0:00:33.9]} 35... Bc6 {[%clk 0:00:02.4]} 36.
Rxd6 {[%clk 0:00:33.4]} 36... Bb5 {[%clk 0:00:03.1]} 37. Ne6 {[%clk 0:00:29.9]}
37... Rc8 {[%clk 0:00:02.3]} 38. Bxf5 {[%clk 0:00:28.5]} 38... Rb8 {[%clk
0:00:01.1]} 39. Ng5 {[%clk 0:00:25.3]} 39... Rc3 {[%clk 0:00:01.6]} 40. Rd4
{[%clk 0:00:23.3]} 40... Kf8 {[%clk 0:00:01.9]} 41. Rxb4 {[%clk 0:00:22.5]}
41... a5 {[%clk 0:00:02.5]} 42. Rd4 {[%clk 0:00:17.4]} 42... a4 {[%clk 0:00:03]}
43. Ne6+ {[%clk 0:00:16.5]} 43... Ke7 {[%clk 0:00:03.6]} 44. Re4 {[%clk
0:00:13.1]} 44... Kf6 {[%clk 0:00:04]} 45. Bg4 {[%clk 0:00:11.8]} 45... Rxc2+
{[%clk 0:00:04.5]} 46. Kf3 {[%clk 0:00:10.6]} 46... Bc6 {[%clk 0:00:05]} 47. Nd4
{[%clk 0:00:08.4]} 47... Rc3+ {[%clk 0:00:04.5]} 48. Kf2 {[%clk 0:00:07]} 48...
Bxe4 {[%clk 0:00:05.4]} 49. Ne2 {[%clk 0:00:05.2]} 49... Rb2 {[%clk 0:00:06.3]}
50. Kf1 {[%clk 0:00:04.3]} 50... Rcc2 {[%clk 0:00:06]} 51. Nd4 {[%clk
0:00:02.5]} 51... Bd3+ {[%clk 0:00:06.2]} 0-1

[Event "*** Titled Tuesday Blitz"]
[Site "Chess.com"]
[Date "2020.05.05"]
[Round "5"]
[White "bakki78"]
[Black "Sam_ChessMood"]
[Result "0-1"]
[WhiteElo "2724"]
[BlackElo "2870"]
[TimeControl "180+1"]
[EndTime "10:57:50 PDT"]
[Termination "Sam_ChessMood won by resignation"]

1. e4 {[%clk 0:03:00.9]} 1... c5 {[%clk 0:02:59]} 2. Nf3 {[%clk 0:03:00.2]} 2...
d6 {[%clk 0:02:59.2]} 3. d4 {[%clk 0:03:00.2]} 3... cxd4 {[%clk 0:02:59.9]} 4.
Nxd4 {[%clk 0:03:00.7]} 4... Nf6 {[%clk 0:03:00.3]} 5. Nc3 {[%clk 0:03:01.2]}
5... a6 {[%clk 0:03:00.4]} 6. h3 {[%clk 0:03:00.6]} 6... e6 {[%clk 0:02:59.2]}
7. g4 {[%clk 0:03:00.3]} 7... h6 {[%clk 0:02:59.7]} 8. Bg2 {[%clk 0:02:57.6]}
8... Be7 {[%clk 0:02:59.1]} 9. O-O {[%clk 0:02:56.7]} 9... O-O {[%clk
0:02:55.5]} 10. Nce2 {[%clk 0:02:56.6]} 10... Nc6 {[%clk 0:02:51.8]} 11. c3
{[%clk 0:02:56.5]} 11... d5 {[%clk 0:01:58.2]} 12. exd5 {[%clk 0:02:53.9]} 12...
Nxd4 {[%clk 0:01:58.2]} 13. Qxd4 {[%clk 0:02:43.5]} 13... Nxd5 {[%clk 0:01:57]}
14. Nf4 {[%clk 0:02:40]} 14... Bf6 {[%clk 0:01:23.7]} 15. Qe4 {[%clk 0:02:36.2]}
15... Nxf4 {[%clk 0:01:11.5]} 16. Bxf4 {[%clk 0:02:34.8]} 16... Qb6 {[%clk
0:01:11.4]} 17. Rab1 {[%clk 0:02:30.8]} 17... a5 {[%clk 0:01:01.8]} 18. Rfd1
{[%clk 0:02:29.1]} 18... a4 {[%clk 0:01:01.4]} 19. a3 {[%clk 0:01:54]} 19... Ra5
{[%clk 0:00:49.4]} 20. Be3 {[%clk 0:01:48.8]} 20... Qc7 {[%clk 0:00:49]} 21. Qb4
{[%clk 0:01:48.5]} 21... Ra6 {[%clk 0:00:45.7]} 22. Bc5 {[%clk 0:01:42.7]} 22...
Re8 {[%clk 0:00:40]} 23. Qb5 {[%clk 0:01:39.5]} 23... Rd8 {[%clk 0:00:29.8]} 24.
Bb4 {[%clk 0:00:57.1]} 24... Ra7 {[%clk 0:00:17.9]} 25. Bf3 {[%clk 0:00:51.4]}
25... g6 {[%clk 0:00:09]} 26. Rxd8+ {[%clk 0:00:49]} 26... Qxd8 {[%clk
0:00:09.3]} 27. Rd1 {[%clk 0:00:48.7]} 27... Qc7 {[%clk 0:00:08.4]} 28. Qe8+
{[%clk 0:00:47.6]} 28... Kh7 {[%clk 0:00:08.6]} 29. Qb5 {[%clk 0:00:42.5]} 29...
b6 {[%clk 0:00:05.9]} 30. Bd6 {[%clk 0:00:33.9]} 30... Qd8 {[%clk 0:00:06]} 31.
Be5 {[%clk 0:00:26.3]} 31... Rd7 {[%clk 0:00:06.3]} 32. Rxd7 {[%clk 0:00:24.1]}
32... Bxd7 {[%clk 0:00:06.4]} 33. Bxf6 {[%clk 0:00:21.2]} 33... Qxf6 {[%clk
0:00:07.3]} 34. Qd3 {[%clk 0:00:19.9]} 34... Qf4 {[%clk 0:00:06.2]} 35. Kg2
{[%clk 0:00:19.4]} 35... Be8 {[%clk 0:00:05.2]} 36. Qe3 {[%clk 0:00:19.3]} 36...
Qxe3 {[%clk 0:00:05.1]} 37. fxe3 {[%clk 0:00:19.5]} 37... Kg7 {[%clk 0:00:05.7]}
38. Kf2 {[%clk 0:00:19.2]} 38... Kf6 {[%clk 0:00:06.1]} 39. Ke2 {[%clk
0:00:19.5]} 39... Ke5 {[%clk 0:00:05.2]} 40. Kd3 {[%clk 0:00:19.6]} 40... Bb5+
{[%clk 0:00:02.8]} 41. c4 {[%clk 0:00:19.7]} 41... Bd7 {[%clk 0:00:03.5]} 42.
Kc3 {[%clk 0:00:20.2]} 42... f5 {[%clk 0:00:04]} 43. Kb4 {[%clk 0:00:20.1]}
43... f4 {[%clk 0:00:04.6]} 44. exf4+ {[%clk 0:00:19.5]} 44... Kxf4 {[%clk
0:00:05.4]} 45. Bd1 {[%clk 0:00:19.6]} 45... e5 {[%clk 0:00:05.6]} 46. c5 {[%clk
0:00:19]} 46... bxc5+ {[%clk 0:00:05.6]} 47. Kxc5 {[%clk 0:00:18.9]} 47... e4
{[%clk 0:00:06.2]} 48. Kd4 {[%clk 0:00:19]} 48... e3 {[%clk 0:00:06.3]} 49. Be2
{[%clk 0:00:18.4]} 49... g5 {[%clk 0:00:06.6]} 50. Kc3 {[%clk 0:00:17.5]} 50...
Bc6 {[%clk 0:00:06.9]} 51. b3 {[%clk 0:00:16.2]} 51... axb3 {[%clk 0:00:06.8]}
52. Kxb3 {[%clk 0:00:16.4]} 52... Bf3 {[%clk 0:00:07.1]} 53. Bd3 {[%clk
0:00:15.8]} 53... e2 {[%clk 0:00:07.3]} 54. Bxe2 {[%clk 0:00:16]} 54... Bxe2
{[%clk 0:00:08.2]} 0-1